[Event "28th CRO-chT 1B-Men 2019"]
[Site "Mali Losinj"]
[Date "2019.10.05"]
[Round "8.28"]
[White "Rubil, Marko"]
[Black "Bosnjak, Petar"]
[Result "1/2-1/2"]
[ECO "B24"]
[WhiteElo "2290"]
[BlackElo "2265"]
[Annotator "NA"]
[PlyCount "67"]
[EventDate "2019.09.28"]
[EventType "team-tourn"]
[EventCountry "CRO"]
[SourceTitle "playchess.com"]
[Source "ChessBase"]
[SourceQuality "1"]
[TimeControl "40/5400+30:1800+30"]

1. e4 {[%emt 0:05:30]} d6 {[%emt 0:00:30]} 2. Nc3 {[%emt 0:08:30]} Nf6 {[%emt 0:00:30]} 3. Nge2 {[%emt 0:00:00]} e5 {[%emt 0:05:30]} 4. g3 {[%emt 0:01:00]} c5 {[%emt 0:06:30]} 5. Bg2 {[%emt 0:03:30]} Nc6 {[%emt 0:00:30]} 6. d3 {[%emt 0:00:30]} Nd4 {[%emt 0:04:30]} 7. h3 $11 {[%emt 0:04:30]} b5 {[%emt 0:07:30]} 8. O-O {[%emt 0:10:30]} b4 {[%emt 0:01:30]} 9. Nxd4 {[%emt 0:00:30]} cxd4 {[%emt 0:00:30]} 10. Ne2 {[%emt 0:00:30]} Bb7 {[%emt 0:19:30]} 11. c3 {[%emt 0:29:30]} bxc3 {[%emt 0:02:30]} 12. bxc3 {[%emt 0:01:30]} dxc3 {[%emt 0:00:30]} 13. Rb1 {[%emt 0:00:30]} Bc6 {[%emt 0:01:30]} 14. Nxc3 {[%emt 0:05:30]} Be7 {[%emt 0:01:30]} 15. d4 {[%emt 0:00:00]} O-O {[%emt 0:00:30]} 16. Nd5 {[%emt 0:12:11]} Bxd5 {[%emt 0:01:30]} 17. exd5 {[%emt 0:00:23]} exd4 {[%emt 0:00:30]} 18. Bb2 {[%emt 0:05:23]} Nd7 {[%emt 0:01:30]} 19. Bxd4 {[%emt 0:00:33]} Bf6 {[%emt 0:00:30]} 20. h4 {[%emt 0:01:06]} Bxd4 {[%emt 0:01:30]} 21. Qxd4 {[%emt 0:00:03]} Nc5 {[%emt 0:01:30]} 22. Rfe1 {[%emt 0:04:24]} Qa5 {[%emt 0:01:30]} 23. Re2 {[%emt 0:02:16]} Rfe8 {[%emt 0:02:30]} 24. Rbb2 {[%emt 0:00:41]} Qc7 {[%emt 0:06:30]} 25. Bf1 {[%emt 0:01:13]} Rad8 {[%emt 0:08:30]} 26. Kg2 {[%emt 0:00:31]} Qc8 {[%emt 0:07:32]} 27. Qf4 {[%emt 0:01:11]} Qc7 {[%emt 0:00:51]} 28. Qd4 {[%emt 0:00:01]} Qc8 {[%emt 0:05:28]} 29. Qf4 {[%emt 0:00:01]} Qc7 {[%emt 0:00:22]} 30. h5 {[%emt 0:01:51]} h6 {[%emt 0:00:39]} 31. Qd4 {[%emt 0:00:30]} Qc8 {[%emt 0:00:35]} 32. Qf4 {[%emt 0:00:03]} Qc7 {[%emt 0:00:04]} 33. Rbc2 {[%emt 0:00:45]} Qd7 {[%emt 0:04:32]} 34. Rb2 {[%emt 0:00:44]} 1/2-1/2

[Event "28th CRO-chT 1B-Men 2019"]
[Site "Mali Losinj"]
[Date "2019.10.06"]
[Round "9.1"]
[White "Ruck, Robert"]
[Black "Sedlak, Nikola"]
[Result "1-0"]
[ECO "A90"]
[WhiteElo "2530"]
[BlackElo "2557"]
[Annotator "ChessBase"]
[PlyCount "125"]
[EventDate "2019.09.28"]
[EventType "team-tourn"]
[EventCountry "CRO"]
[SourceTitle "playchess.com"]
[Source "ChessBase"]
[SourceQuality "1"]
[TimeControl "40/5400+30:1800+30"]

1. Nf3 {[%emt 0:00:30]} d5 {[%emt 0:06:30]} 2. d4 {[%emt 0:00:00]} e6 {[%emt 0:00:30]} 3. c4 {[%emt 0:00:00]} c6 {[%emt 0:00:30]} 4. Nbd2 {[%emt 0:03:30]} f5 {[%emt 0:00:30]} 5. g3 {[%emt 0:00:30]} Nf6 {[%emt 0:00:00]} 6. Bg2 {[%emt 0:00:00]} Bd6 {[%emt 0:00:00]} 7. O-O {[%emt 0:00:00]} Nbd7 {[%emt 0:00:30]} 8. Qc2 {[%emt 0:01:30]} O-O {[%emt 0:01:30]} 9. b3 {[%emt 0:33:30]} Qe7 {[%emt 0:02:30]} 10. Bb2 {[%emt 0:00:30]} b6 {[%emt 0:01:30]} 11. Ne5 {[%emt 0:00:30]} Bb7 {[%emt 0:00:00]} 12. Rac1 {[%emt 0:02:30]} Rac8 {[%emt 0:00:00]} 13. Qb1 {[%emt 0:09:30]} Bxe5 {[%emt 0:04:30]} 14. dxe5 {[%emt 0:00:00]} Ng4 {[%emt 0:01:30]} 15. Qa1 {[%emt 0:03:00]} h5 {[%emt 0:13:30]} 16. h3 {[%emt 0:07:30]} Nh6 {[%emt 0:00:30]} 17. f4 {[%emt 0:00:30]} h4 {[%emt 0:02:30]} 18. gxh4 {[%emt 0:00:30]} Qxh4 {[%emt 0:00:30]} 19. e3 {[%emt 0:00:30]} c5 {[%emt 0:01:30]} 20. Rcd1 {[%emt 0:07:30]} Rfd8 {[%emt 0:00:30]} 21. Bc3 {[%emt 0:14:12]} Nf8 {[%emt 0:03:30]} 22. Nf3 {[%emt 0:00:20]} Qe7 {[%emt 0:02:30]} 23. Be1 {[%emt 0:00:19]} Ng6 {[%emt 0:00:30]} 24. Bg3 {[%emt 0:00:52]} Rd7 {[%emt 0:04:30]} 25. Kh2 {[%emt 0:03:51]} Rcd8 {[%emt 0:02:30]} 26. Qc1 {[%emt 0:00:23]} d4 {[%emt 0:02:30]} 27. exd4 {[%emt 0:00:37]} cxd4 {[%emt 0:00:30]} 28. Qd2 {[%emt 0:00:27]} d3 {[%emt 0:01:30]} 29. Rf2 {[%emt 0:00:22]} Qc5 {[%emt 0:08:30]} 30. Rg1 {[%emt 0:07:08]} Be4 {[%emt 0:05:30]} 31. Ng5 {[%emt 0:03:19]} Qc6 {[%emt 0:00:30]} 32. Qe3 {[%emt 0:00:49]} Rd4 {[%emt 0:00:30]} 33. Nf3 {[%emt 0:00:18]} Bxf3 {[%emt 0:01:30]} 34. Bxf3 {[%emt 0:00:02]} Re4 {[%emt 0:05:30]} 35. Qd2 {[%emt 0:00:16]} Qc5 {[%emt 0:00:30]} 36. Bh5 {[%emt 0:01:04]} Nf8 {[%emt 0:05:30]} 37. Bh4 {[%emt 0:00:15]} Rd7 {[%emt 0:00:00]} 38. Be8 {[%emt 0:01:32]} Re7 {[%emt 0:07:24]} 39. Bxe7 {[%emt 0:00:56]} Qxe7 {[%emt 0:00:05]} 40. Bc6 {[%emt 0:00:00]} Rd4 {[%emt 0:00:00]} 41. Rg3 {[%emt 0:10:28]} Nf7 {[%emt 0:04:01]} 42. Rxd3 {[%emt 0:06:32]} Rxd3 {[%emt 0:00:30]} 43. Qxd3 {[%emt 0:00:05]} g5 {[%emt 0:00:30]} 44. Qd4 {[%emt 0:01:57]} Ng6 {[%emt 0:00:00]} 45. fxg5 {[%emt 0:00:13]} Nfxe5 {[%emt 0:00:00]} 46. Ba8 {[%emt 0:08:40]} Kh7 {[%emt 0:03:30]} 47. Re2 {[%emt 0:00:51]} Nf7 {[%emt 0:04:30]} 48. Kh1 {[%emt 0:01:50]} Nxg5 {[%emt 0:01:30]} 49. Bg2 {[%emt 0:01:02]} e5 {[%emt 0:01:30]} 50. Qf2 {[%emt 0:00:51]} Qf6 {[%emt 0:00:30]} 51. b4 {[%emt 0:00:24]} Nf4 {[%emt 0:01:30]} 52. Rd2 {[%emt 0:00:29]} Nge6 {[%emt 0:03:30]} 53. Rd7+ {[%emt 0:00:53]} Kh6 {[%emt 0:00:30]} 54. Rd6 {[%emt 0:00:26]} Qf8 {[%emt 0:01:30]} 55. c5 {[%emt 0:00:41]} bxc5 {[%emt 0:00:30]} 56. bxc5 {[%emt 0:00:01]} Kg5 {[%emt 0:01:30]} 57. Qg3+ {[%emt 0:01:14]} Kf6 {[%emt 0:00:30]} 58. Qh4+ {[%emt 0:00:34]} Kg6 {[%emt 0:00:00]} 59. Qg3+ {[%emt 0:01:37]} Kf6 {[%emt 0:00:00]} 60. Qh4+ {[%emt 0:00:16]} Kg6 {[%emt 0:00:30]} 61. Bf3 {[%emt 0:00:35]} Qb8 {[%emt 0:01:30]} 62. Bh5+ {[%emt 0:00:47]} Kh6 {[%emt 0:00:30]} 63. Be8+ {[%emt 0:00:31]} 1-0

[Event "28th CRO-chT 1B-Men 2019"]
[Site "Mali Losinj"]
[Date "2019.10.06"]
[Round "9.3"]
[White "Dabo-Peranic, Robert"]
[Black "Matkovic, Tonci"]
[Result "1/2-1/2"]
[ECO "C89"]
[WhiteElo "2323"]
[BlackElo "2281"]
[Annotator "ChessBase"]
[PlyCount "113"]
[EventDate "2019.09.28"]
[EventType "team-tourn"]
[EventCountry "CRO"]
[SourceTitle "playchess.com"]
[Source "ChessBase"]
[SourceQuality "1"]
[TimeControl "40/5400+30:1800+30"]

1. e4 {[%emt 0:00:30]} e5 {[%emt 0:00:30]} 2. Nf3 {[%emt 0:00:00]} Nc6 {[%emt 0:00:00]} 3. Bb5 {[%emt 0:00:00]} a6 {[%emt 0:00:00]} 4. Ba4 {[%emt 0:00:00]} Nf6 {[%emt 0:00:00]} 5. O-O {[%emt 0:00:00]} Be7 {[%emt 0:00:00]} 6. Re1 {[%emt 0:00:00]} b5 {[%emt 0:00:30]} 7. Bb3 {[%emt 0:00:00]} O-O {[%emt 0:00:30]} 8. c3 {[%emt 0:00:30]} d5 {[%emt 0:00:00]} 9. exd5 {[%emt 0:00:00]} Nxd5 {[%emt 0:00:00]} 10. Nxe5 {[%emt 0:00:00]} Nxe5 {[%emt 0:00:30]} 11. Rxe5 {[%emt 0:00:00]} c6 {[%emt 0:00:00]} 12. d3 {[%emt 0:00:00]} Bd6 {[%emt 0:00:00]} 13. Re1 {[%emt 0:00:30]} Bf5 {[%emt 0:00:30]} 14. Nd2 {[%emt 0:02:30]} Qh4 {[%emt 0:04:30]} 15. g3 {[%emt 0:01:30]} Qh3 {[%emt 0:03:30]} 16. Ne4 {[%emt 0:00:30]} Be7 {[%emt 0:07:30]} 17. f3 {[%emt 0:10:30]} Bg6 {[%emt 0:08:30]} 18. Nf2 {[%emt 0:01:30]} Qd7 {[%emt 0:00:30]} 19. Bxd5 {[%emt 0:01:30]} cxd5 {[%emt 0:00:30]} 20. Be3 {[%emt 0:00:00]} Bf6 {[%emt 0:02:30]} 21. Qd2 {[%emt 0:05:00]} d4 {[%emt 0:01:30]} 22. Bxd4 {[%emt 0:05:30]} Bxd4 {[%emt 0:01:30]} 23. cxd4 {[%emt 0:00:00]} Qxd4 {[%emt 0:00:30]} 24. Qc3 {[%emt 0:00:00]} Qd5 {[%emt 0:01:30]} 25. Re3 {[%emt 0:25:30]} Rae8 {[%emt 0:03:30]} 26. Rxe8 {[%emt 0:09:30]} Rxe8 {[%emt 0:00:30]} 27. Re1 {[%emt 0:13:30]} Rxe1+ {[%emt 0:00:00]} 28. Qxe1 {[%emt 0:00:30]} h6 {[%emt 0:00:00]} 29. Kg2 {[%emt 0:03:30]} Qxa2 {[%emt 0:00:30]} 30. Qb4 {[%emt 0:00:00]} f5 {[%emt 0:06:30]} 31. d4 {[%emt 0:01:00]} Bf7 {[%emt 0:07:30]} 32. Nd3 {[%emt 0:02:30]} Qc4 {[%emt 0:09:30]} 33. Qxc4 {[%emt 0:01:15]} Bxc4 {[%emt 0:01:30]} 34. Ne5 {[%emt 0:00:42]} Bd5 {[%emt 0:00:30]} 35. b4 {[%emt 0:00:17]} Kf8 {[%emt 0:02:30]} 36. Kf2 {[%emt 0:00:30]} Ke7 {[%emt 0:00:30]} 37. Ke3 {[%emt 0:00:10]} Kd6 {[%emt 0:01:30]} 38. Kd3 {[%emt 0:00:26]} Ke6 {[%emt 0:05:30]} 39. f4 {[%emt 0:00:36]} Be4+ {[%emt 0:01:30]} 40. Kc3 {[%emt 0:00:00]} h5 {[%emt 0:00:00]} 41. Kd2 {[%emt 0:08:34]} Kd6 {[%emt 0:05:00]} 42. Ke2 {[%emt 0:08:30]} Kd5 {[%emt 0:08:30]} 43. Ke3 {[%emt 0:00:30]} Bg2 {[%emt 0:07:30]} 44. Kd3 {[%emt 0:00:30]} Kd6 {[%emt 0:04:30]} 45. Ke2 {[%emt 0:00:30]} Be4 {[%emt 0:00:30]} 46. Ke3 {[%emt 0:00:00]} Kd5 {[%emt 0:00:30]} 47. h4 {[%emt 0:20:08]} Bg2 {[%emt 0:02:30]} 48. Kd3 {[%emt 0:01:27]} Bf1+ {[%emt 0:01:30]} 49. Ke3 {[%emt 0:01:19]} Kd6 {[%emt 0:01:30]} 50. Kf2 {[%emt 0:01:16]} Bh3 {[%emt 0:01:30]} 51. Ke3 {[%emt 0:01:45]} Kd5 {[%emt 0:00:30]} 52. Kd3 {[%emt 0:00:58]} Bf1+ {[%emt 0:00:30]} 53. Ke3 {[%emt 0:00:05]} Bg2 {[%emt 0:00:30]} 54. Kd3 {[%emt 0:00:22]} Be4+ {[%emt 0:02:30]} 55. Ke3 {[%emt 0:00:02]} Bb1 {[%emt 0:02:30]} 56. Nf3 {[%emt 0:03:00]} Be4 {[%emt 0:01:30]} 57. Ne5 {[%emt 0:02:04]} 1/2-1/2

[Event "28th CRO-chT 1B-Men 2019"]
[Site "Mali Losinj"]
[Date "2019.10.06"]
[Round "9.5"]
[White "Martic, Zlatko"]
[Black "Malenica, Mario"]
[Result "1-0"]
[ECO "A43"]
[WhiteElo "2299"]
[BlackElo "2221"]
[Annotator "ChessBase"]
[PlyCount "59"]
[EventDate "2019.09.28"]
[EventType "team-tourn"]
[EventCountry "CRO"]
[SourceTitle "playchess.com"]
[Source "ChessBase"]
[SourceQuality "1"]
[TimeControl "40/5400+30:1800+30"]

1. d4 {[%emt 0:08:30]} g6 {[%emt 0:00:30]} 2. c4 {[%emt 0:00:30]} Bg7 {[%emt 0:00:00]} 3. Nc3 {[%emt 0:00:00]} c5 {[%emt 0:00:00]} 4. d5 {[%emt 0:00:00]} d6 {[%emt 0:01:30]} 5. e4 {[%emt 0:01:30]} e6 {[%emt 0:01:30]} 6. f4 {[%emt 0:00:30]} exd5 {[%emt 0:01:30]} 7. cxd5 {[%emt 0:00:30]} a6 {[%emt 0:00:30]} 8. Nf3 {[%emt 0:00:30]} Bg4 {[%emt 0:01:30]} 9. Be2 {[%emt 0:01:30]} Bxf3 {[%emt 0:01:30]} 10. Bxf3 {[%emt 0:02:30]} Nd7 {[%emt 0:00:30]} 11. a4 {[%emt 0:00:30]} Ne7 {[%emt 0:00:30]} 12. O-O {[%emt 0:00:30]} O-O {[%emt 0:00:00]} 13. Kh1 {[%emt 0:03:30]} f5 {[%emt 0:07:00]} 14. g4 {[%emt 0:03:30]} Kh8 {[%emt 0:02:30]} 15. exf5 {[%emt 0:08:30]} gxf5 {[%emt 0:00:30]} 16. g5 {[%emt 0:00:00]} Rb8 {[%emt 0:04:30]} 17. Ne2 {[%emt 0:07:00]} b5 {[%emt 0:02:30]} 18. axb5 {[%emt 0:00:00]} axb5 {[%emt 0:00:00]} 19. Ng3 {[%emt 0:00:00]} Nb6 {[%emt 0:09:00]} 20. Nh5 {[%emt 0:01:30]} Bd4 {[%emt 0:02:30]} 21. Ra3 {[%emt 0:04:30]} Nc4 {[%emt 0:06:30]} 22. Ra7 {[%emt 0:03:30]} Ra8 {[%emt 0:04:30]} 23. Rxa8 {[%emt 0:01:30]} Qxa8 {[%emt 0:00:00]} 24. b3 {[%emt 0:00:30]} Nb6 {[%emt 0:05:00]} 25. Qe2 {[%emt 0:03:30]} Ng8 {[%emt 0:08:30]} 26. Bb2 {[%emt 0:01:30]} Nd7 {[%emt 0:06:30]} 27. Qf2 {[%emt 0:03:30]} Ne7 {[%emt 0:02:30]} 28. Bxd4+ {[%emt 0:00:30]} cxd4 {[%emt 0:00:30]} 29. Qxd4+ {[%emt 0:00:00]} Kg8 {[%emt 0:00:00]} 30. Qg7# {[%emt 0:00:00]} 1-0

[Event "28th CRO-chT 1B-Men 2019"]
[Site "Mali Losinj"]
[Date "2019.10.06"]
[Round "9.6"]
[White "Grgurevic, Boris"]
[Black "Matanovic, Luka"]
[Result "1/2-1/2"]
[ECO "C45"]
[WhiteElo "2177"]
[BlackElo "2245"]
[Annotator "ChessBase"]
[PlyCount "97"]
[EventDate "2019.09.28"]
[EventType "team-tourn"]
[EventCountry "CRO"]
[SourceTitle "playchess.com"]
[Source "ChessBase"]
[SourceQuality "1"]
[TimeControl "40/5400+30:1800+30"]

1. e4 {[%emt 0:00:30]} e5 {[%emt 0:00:30]} 2. Nf3 {[%emt 0:00:00]} Nc6 {[%emt 0:00:00]} 3. d4 {[%emt 0:00:00]} exd4 {[%emt 0:00:00]} 4. Nxd4 {[%emt 0:00:00]} Nf6 {[%emt 0:00:30]} 5. Nxc6 {[%emt 0:00:00]} bxc6 {[%emt 0:00:00]} 6. e5 {[%emt 0:00:30]} Qe7 {[%emt 0:00:00]} 7. Qe2 {[%emt 0:00:30]} Nd5 {[%emt 0:01:30]} 8. Nd2 {[%emt 0:00:30]} g6 {[%emt 0:10:30]} 9. Nf3 {[%emt 0:02:30]} Bg7 {[%emt 0:02:30]} 10. Bd2 {[%emt 0:07:30]} Rb8 {[%emt 0:04:30]} 11. c4 {[%emt 0:06:30]} Nb6 {[%emt 0:04:30]} 12. b3 {[%emt 0:03:30]} O-O {[%emt 0:10:30]} 13. Bg5 {[%emt 0:07:30]} Qe6 {[%emt 0:02:30]} 14. Nd4 {[%emt 0:04:30]} Qxe5 {[%emt 0:02:30]} 15. Qxe5 {[%emt 0:00:00]} Bxe5 {[%emt 0:00:00]} 16. O-O-O {[%emt 0:00:00]} Bb7 {[%emt 0:06:00]} 17. c5 {[%emt 0:05:30]} Nd5 {[%emt 0:01:30]} 18. Bc4 {[%emt 0:00:30]} Nc3 {[%emt 0:04:30]} 19. Rd2 {[%emt 0:00:30]} d5 {[%emt 0:01:30]} 20. cxd6 {[%emt 0:00:30]} cxd6 {[%emt 0:01:30]} 21. Nf3 {[%emt 0:02:30]} Ne4 {[%emt 0:01:30]} 22. Nxe5 {[%emt 0:11:30]} dxe5 {[%emt 0:02:30]} 23. Be7 {[%emt 0:04:30]} Nxd2 {[%emt 0:07:30]} 24. Kxd2 {[%emt 0:00:00]} Rfe8 {[%emt 0:00:30]} 25. Bf6 {[%emt 0:00:00]} Bc8 {[%emt 0:01:30]} 26. Kc3 {[%emt 0:00:30]} Be6 {[%emt 0:02:30]} 27. Bxe5 {[%emt 0:00:30]} Rb7 {[%emt 0:00:30]} 28. f4 {[%emt 0:01:30]} Rd7 {[%emt 0:02:30]} 29. Ba6 {[%emt 0:03:30]} Rf8 {[%emt 0:04:30]} 30. Bf6 {[%emt 0:00:30]} Bd5 {[%emt 0:00:30]} 31. Rg1 {[%emt 0:00:30]} Re8 {[%emt 0:03:30]} 32. Be5 {[%emt 0:02:30]} f6 {[%emt 0:03:30]} 33. Bxf6 {[%emt 0:00:30]} Re3+ {[%emt 0:00:30]} 34. Kb2 {[%emt 0:00:30]} Be6 {[%emt 0:00:35]} 35. Bc3 {[%emt 0:08:30]} c5 {[%emt 0:05:09]} 36. Rc1 {[%emt 0:09:30]} Re4 {[%emt 0:04:24]} 37. Bb5 {[%emt 0:10:54]} Rd6 {[%emt 0:02:52]} 38. g3 {[%emt 0:03:41]} Rb6 {[%emt 0:02:32]} 39. Bd3 {[%emt 0:00:58]} Re3 {[%emt 0:00:27]} 40. Kc2 {[%emt 0:00:00]} Bf5 {[%emt 0:00:00]} 41. Bxf5 {[%emt 0:02:57]} gxf5 {[%emt 0:04:01]} 42. Rd1 {[%emt 0:00:30]} Re2+ {[%emt 0:00:30]} 43. Kd3 {[%emt 0:00:30]} Rxa2 {[%emt 0:03:30]} 44. Kc4 {[%emt 0:00:30]} Ra3 {[%emt 0:04:30]} 45. Rd8+ {[%emt 0:04:30]} Kf7 {[%emt 0:00:30]} 46. Rd7+ {[%emt 0:00:30]} Kg6 {[%emt 0:02:30]} 47. Rg7+ {[%emt 0:00:30]} Kh6 {[%emt 0:00:30]} 48. Rg5 {[%emt 0:02:30]} Rb7 {[%emt 0:03:30]} 49. h3 {[%emt 0:04:30]} 1/2-1/2

[Event "28th CRO-chT 1B-Men 2019"]
[Site "Mali Losinj"]
[Date "2019.10.06"]
[Round "9.13"]
[White "Nagy, Gabor"]
[Black "Lenic, Luka"]
[Result "1-0"]
[ECO "D42"]
[WhiteElo "2476"]
[BlackElo "2644"]
[Annotator "RC"]
[PlyCount "65"]
[EventDate "2019.09.28"]
[EventType "team-tourn"]
[EventCountry "CRO"]
[SourceTitle "playchess.com"]
[Source "ChessBase"]
[SourceQuality "1"]
[TimeControl "40/5400+30:1800+30"]

1. d4 {[%emt 0:00:30]} Nf6 {[%emt 0:00:30]} 2. c4 {[%emt 0:00:30]} e6 {[%emt 0:00:00]} 3. Nf3 {[%emt 0:00:30]} d5 {[%emt 0:00:00]} 4. Nc3 {[%emt 0:00:30]} c5 {[%emt 0:00:30]} 5. cxd5 {[%emt 0:01:30]} Nxd5 {[%emt 0:00:30]} 6. e3 {[%emt 0:01:30]} Nc6 {[%emt 0:00:30]} 7. Bd3 {[%emt 0:00:30]} Be7 {[%emt 0:00:30]} 8. O-O {[%emt 0:00:30]} O-O {[%emt 0:02:30]} 9. a3 {[%emt 0:00:30]} b6 {[%emt 0:08:30]} 10. Qc2 {[%emt 0:06:30]} Nxc3 {[%emt 0:01:30]} 11. bxc3 {[%emt 0:01:30]} h6 {[%emt 0:03:30]} 12. Bb2 {[%emt 0:00:30]} Bb7 {[%emt 0:01:30]} 13. Rad1 {[%emt 0:01:30]} Qc7 {[%emt 0:06:30]} 14. e4 {[%emt 0:00:30]} Na5 {[%emt 0:01:30]} 15. Qe2 {[%emt 0:01:30]} Bf6 {[%emt 0:20:30]} 16. Rfe1 {[%emt 0:04:30]} Rac8 {[%emt 0:02:30]} 17. e5 {[%emt 0:03:30]} Be7 {[%emt 0:00:30]} 18. Nd2 {[%emt 0:00:30]} Rfd8 {[%emt 0:05:30]} 19. Qg4 {[%emt 0:00:30]} Bf8 {[%emt 0:00:30]} 20. Ne4 {[%emt 0:05:30]} cxd4 {[%emt 0:00:30]} 21. cxd4 {[%emt 0:00:30]} Kh8 {[%emt 0:02:30]} 22. Nd6 {[%emt 0:02:30]} Rxd6 {[%emt 0:04:30]} 23. exd6 {[%emt 0:00:30]} Qxd6 {[%emt 0:01:30]} 24. d5 {[%emt 0:02:30]} Bxd5 {[%emt 0:00:30]} 25. Re3 {[%emt 0:00:30]} Nc4 {[%emt 0:03:30]} 26. Bxc4 {[%emt 0:01:30]} Rxc4 {[%emt 0:00:30]} 27. Bxg7+ {[%emt 0:00:30]} Kh7 {[%emt 0:01:30]} 28. Bxf8 {[%emt 0:00:30]} Qxf8 {[%emt 0:00:00]} 29. Qe2 {[%emt 0:01:30]} Qg7 {[%emt 0:01:00]} 30. Rg3 {[%emt 0:00:30]} Qf6 {[%emt 0:00:30]} 31. h3 {[%emt 0:00:30]} b5 {[%emt 0:02:30]} 32. Qd3+ {[%emt 0:02:30]} Kh8 {[%emt 0:04:30]} 33. Qe3 {[%emt 0:00:30]} 1-0

[Event "28th CRO-chT 1B-Men 2019"]
[Site "Mali Losinj"]
[Date "2019.10.06"]
[Round "9.16"]
[White "Bukal, Vladimir Jr."]
[Black "Blagojevic, Marijan"]
[Result "1-0"]
[ECO "D02"]
[WhiteElo "2390"]
[BlackElo "2196"]
[Annotator "ChessBase"]
[PlyCount "79"]
[EventDate "2019.09.28"]
[EventType "team-tourn"]
[EventCountry "CRO"]
[SourceTitle "playchess.com"]
[Source "ChessBase"]
[SourceQuality "1"]
[TimeControl "40/5400+30:1800+30"]

1. d4 {[%emt 0:00:30]} Nf6 {[%emt 0:07:30]} 2. Bf4 {[%emt 0:00:00]} d5 {[%emt 0:00:30]} 3. e3 {[%emt 0:00:00]} e6 {[%emt 0:00:30]} 4. Nf3 {[%emt 0:00:30]} c5 {[%emt 0:00:30]} 5. Be2 {[%emt 0:00:30]} Bd6 {[%emt 0:01:30]} 6. dxc5 {[%emt 0:00:30]} Bxf4 {[%emt 0:00:30]} 7. exf4 {[%emt 0:00:00]} Qa5+ {[%emt 0:01:30]} 8. Nbd2 {[%emt 0:00:00]} Qxc5 {[%emt 0:00:30]} 9. O-O {[%emt 0:00:00]} O-O {[%emt 0:00:00]} 10. Nb3 {[%emt 0:00:00]} Qc7 {[%emt 0:00:00]} 11. g3 {[%emt 0:02:30]} Nc6 {[%emt 0:05:30]} 12. c3 {[%emt 0:02:30]} Bd7 {[%emt 0:03:30]} 13. Bd3 {[%emt 0:02:30]} Rfe8 {[%emt 0:05:30]} 14. Re1 {[%emt 0:00:30]} e5 {[%emt 0:05:30]} 15. Nxe5 {[%emt 0:04:30]} Nxe5 {[%emt 0:01:30]} 16. fxe5 {[%emt 0:00:30]} Rxe5 {[%emt 0:00:30]} 17. Rxe5 {[%emt 0:01:30]} Qxe5 {[%emt 0:00:30]} 18. Qe2 {[%emt 0:01:30]} Qd6 {[%emt 0:00:30]} 19. Nd4 {[%emt 0:04:30]} h5 {[%emt 0:02:30]} 20. Qe3 {[%emt 0:05:30]} Re8 {[%emt 0:02:30]} 21. Qg5 {[%emt 0:02:30]} Re5 {[%emt 0:13:30]} 22. Qf4 {[%emt 0:02:30]} Bg4 {[%emt 0:06:30]} 23. f3 {[%emt 0:09:30]} Bd7 {[%emt 0:06:30]} 24. Qd2 {[%emt 0:08:30]} h4 {[%emt 0:00:30]} 25. g4 {[%emt 0:00:30]} Qe7 {[%emt 0:04:30]} 26. Kg2 {[%emt 0:07:30]} Re3 {[%emt 0:06:30]} 27. Nc2 {[%emt 0:12:30]} h3+ {[%emt 0:01:30]} 28. Kf2 {[%emt 0:00:30]} Re5 {[%emt 0:13:19]} 29. Qf4 {[%emt 0:06:30]} Qd6 {[%emt 0:02:32]} 30. Qb4 {[%emt 0:03:30]} Qc7 {[%emt 0:01:18]} 31. Kg1 {[%emt 0:00:30]} Re4 {[%emt 0:03:57]} 32. fxe4 {[%emt 0:05:51]} dxe4 {[%emt 0:01:45]} 33. Be2 {[%emt 0:01:21]} Qf4 {[%emt 0:01:56]} 34. Qd4 {[%emt 0:07:39]} Nxg4 {[%emt 0:00:36]} 35. Bxg4 {[%emt 0:00:17]} Qxg4+ {[%emt 0:00:01]} 36. Kf1 {[%emt 0:00:37]} Qg2+ {[%emt 0:01:14]} 37. Ke1 {[%emt 0:00:05]} Bg4 {[%emt 0:00:15]} 38. Qf2 {[%emt 0:02:41]} e3 {[%emt 0:00:20]} 39. Nxe3 {[%emt 0:00:17]} Qh1+ {[%emt 0:00:30]} 40. Nf1 {[%emt 0:00:00]} 1-0

[Event "28th CRO-chT 1B-Men 2019"]
[Site "Mali Losinj"]
[Date "2019.10.06"]
[Round "9.17"]
[White "Machata, Martin"]
[Black "Ivekovic, Zvonimir"]
[Result "1-0"]
[ECO "A14"]
[WhiteElo "2179"]
[BlackElo "2405"]
[Annotator "ChessBase"]
[PlyCount "79"]
[EventDate "2019.09.28"]
[EventType "team-tourn"]
[EventCountry "CRO"]
[SourceTitle "playchess.com"]
[Source "ChessBase"]
[SourceQuality "1"]
[TimeControl "40/5400+30:1800+30"]

1. Nf3 {[%emt 0:06:30]} c5 {[%emt 0:00:30]} 2. g3 {[%emt 0:00:00]} b6 {[%emt 0:01:30]} 3. Bg2 {[%emt 0:00:00]} Bb7 {[%emt 0:00:00]} 4. O-O {[%emt 0:00:30]} Nf6 {[%emt 0:00:00]} 5. c4 {[%emt 0:00:00]} e6 {[%emt 0:00:30]} 6. b3 {[%emt 0:00:00]} Be7 {[%emt 0:02:30]} 7. Bb2 {[%emt 0:00:30]} O-O {[%emt 0:00:30]} 8. Nc3 {[%emt 0:01:30]} d5 {[%emt 0:01:30]} 9. e3 {[%emt 0:00:00]} Nc6 {[%emt 0:12:30]} 10. d3 {[%emt 0:01:00]} Qc8 {[%emt 0:08:30]} 11. Qe2 {[%emt 0:00:30]} a6 {[%emt 0:04:30]} 12. Rac1 {[%emt 0:04:30]} Rd8 {[%emt 0:01:30]} 13. Na4 {[%emt 0:09:30]} Qc7 {[%emt 0:05:30]} 14. cxd5 {[%emt 0:00:30]} exd5 {[%emt 0:01:30]} 15. d4 {[%emt 0:00:30]} c4 {[%emt 0:00:30]} 16. bxc4 {[%emt 0:20:30]} dxc4 {[%emt 0:00:30]} 17. Rxc4 {[%emt 0:16:30]} b5 {[%emt 0:00:00]} 18. Rc2 {[%emt 0:00:30]} bxa4 {[%emt 0:04:00]} 19. Ne5 {[%emt 0:00:30]} a3 {[%emt 0:00:30]} 20. Nxc6 {[%emt 0:07:30]} Bxc6 {[%emt 0:15:30]} 21. Rxc6 {[%emt 0:02:30]} Qd7 {[%emt 0:01:30]} 22. Ba1 {[%emt 0:01:30]} Nd5 {[%emt 0:00:30]} 23. Rfc1 {[%emt 0:06:30]} Rab8 {[%emt 0:00:30]} 24. e4 {[%emt 0:02:52]} Nb4 {[%emt 0:01:30]} 25. R6c4 {[%emt 0:02:24]} Rbc8 {[%emt 0:02:30]} 26. d5 {[%emt 0:00:20]} Rxc4 {[%emt 0:02:30]} 27. Qxc4 {[%emt 0:00:56]} Qb5 {[%emt 0:00:30]} 28. Bf1 {[%emt 0:04:47]} Qxc4 {[%emt 0:01:30]} 29. Bxc4 {[%emt 0:00:01]} Rc8 {[%emt 0:00:00]} 30. d6 {[%emt 0:00:11]} Bxd6 {[%emt 0:01:00]} 31. Bxf7+ {[%emt 0:00:08]} Kxf7 {[%emt 0:00:00]} 32. Rxc8 {[%emt 0:00:04]} Nxa2 {[%emt 0:01:00]} 33. Rc6 {[%emt 0:00:20]} Be7 {[%emt 0:00:30]} 34. Rxa6 {[%emt 0:00:22]} Nc1 {[%emt 0:00:30]} 35. Kg2 {[%emt 0:02:48]} Nb3 {[%emt 0:00:30]} 36. Bc3 {[%emt 0:01:32]} Nc5 {[%emt 0:01:30]} 37. Rxa3 {[%emt 0:00:18]} Nxe4 {[%emt 0:00:30]} 38. Rb3 {[%emt 0:00:15]} h5 {[%emt 0:00:30]} 39. Bd4 {[%emt 0:01:49]} g6 {[%emt 0:00:30]} 40. Rf3+ {[%emt 0:00:00]} 1-0